[Event "Torneo Nuevo Centro. Jornada 11"]
[Site "Chess.com"]
[Date "2020.08.28"]
[Round "3"]
[White "Gil López, Alejandro"]
[Black "Martínez Escandell, Alfonso"]
[Result "1-0"]
[WhiteElo "2214"]
[BlackElo "1926"]
[TimeControl "180+2"]
[EndTime "10:53:37 PDT"]
[Termination "Victoria de AglVal0313 por abandono"]

1. e4 {[%clk 0:03:01.9]} 1... c5 {[%clk 0:03:00.9]} 2. Nf3 {[%clk 0:02:55.7]}
2... e6 {[%clk 0:03:02]} 3. c3 {[%clk 0:02:54.9]} 3... Nc6 {[%clk 0:03:01.9]} 4.
d4 {[%clk 0:02:55.7]} 4... cxd4 {[%clk 0:03:03.8]} 5. cxd4 {[%clk 0:02:57.6]}
5... d5 {[%clk 0:03:05.6]} 6. exd5 {[%clk 0:02:59.5]} 6... Qxd5 {[%clk
0:03:06.5]} 7. Nc3 {[%clk 0:03:00.5]} 7... Qd8 {[%clk 0:03:07.3]} 8. Bb5 {[%clk
0:03:01.1]} 8... Bd7 {[%clk 0:03:08]} 9. O-O {[%clk 0:02:59.3]} 9... Nf6 {[%clk
0:03:08.5]} 10. Re1 {[%clk 0:02:59.2]} 10... Be7 {[%clk 0:03:09.4]} 11. d5
{[%clk 0:02:49.2]} 11... exd5 {[%clk 0:03:08.4]} 12. Nxd5 {[%clk 0:02:49.8]}
12... Nxd5 {[%clk 0:03:09.3]} 13. Qxd5 {[%clk 0:02:51.2]} 13... O-O {[%clk
0:03:10.4]} 14. Bf4 {[%clk 0:02:45.5]} 14... a6 {[%clk 0:03:10.6]} 15. Ba4
{[%clk 0:02:44.7]} 15... b5 {[%clk 0:03:11.2]} 16. Bb3 {[%clk 0:02:45.3]} 16...
Be6 {[%clk 0:03:11.6]} 17. Qxc6 {[%clk 0:02:44]} 17... Bxb3 {[%clk 0:03:12.4]}
18. axb3 {[%clk 0:02:45.4]} 18... Bf6 {[%clk 0:03:09.5]} 19. Be5 {[%clk
0:02:35.7]} 19... Bxe5 {[%clk 0:03:09.5]} 20. Nxe5 {[%clk 0:02:36.1]} 20... Rc8
{[%clk 0:03:10.1]} 21. Qd7 {[%clk 0:02:34.7]} 21... Qf6 {[%clk 0:03:09.1]} 22.
Qg4 {[%clk 0:02:30.3]} 22... Qd6 {[%clk 0:02:56.9]} 23. Rad1 {[%clk 0:02:25]}
23... Qc5 {[%clk 0:02:49]} 24. Nd7 {[%clk 0:02:24.4]} 24... Qc2 {[%clk
0:02:40.4]} 25. Nxf8 {[%clk 0:02:23.6]} 25... Rxf8 {[%clk 0:02:42.3]} 26. Qb4
{[%clk 0:02:15.4]} 26... Qxb2 {[%clk 0:02:42.3]} 27. Qxf8+ {[%clk 0:02:15.9]}
1

[Event "Torneo Nuevo Centro. Jornada 11"]
[Site "Chess.com"]
[Date "2020.08.28"]
[Round "3"]
[White "Aymerich Rosell, Pablo"]
[Black "Muñoz Pantoja, Miguel"]
[Result "0-1"]
[WhiteElo "1999"]
[BlackElo "2105"]
[TimeControl "180+2"]
[EndTime "10:53:58 PDT"]
[Termination "Victoria de Indalsa por jaque mate"]

1. e4 {[%clk 0:03:01.9]} 1... d5 {[%clk 0:03:00.3]} 2. exd5 {[%clk 0:03:01.8]}
2... Qxd5 {[%clk 0:03:01.9]} 3. Nc3 {[%clk 0:03:02.7]} 3... Qa5 {[%clk
0:03:02.1]} 4. d4 {[%clk 0:03:03.4]} 4... Nf6 {[%clk 0:03:03.2]} 5. Nf3 {[%clk
0:03:04.3]} 5... Bg4 {[%clk 0:03:04.2]} 6. h3 {[%clk 0:03:04.4]} 6... Bxf3
{[%clk 0:03:04.9]} 7. Qxf3 {[%clk 0:03:05.2]} 7... c6 {[%clk 0:03:06.5]} 8. Bd2
{[%clk 0:02:59.2]} 8... Nbd7 {[%clk 0:03:07.5]} 9. Bc4 {[%clk 0:02:48.7]} 9...
e6 {[%clk 0:03:08]} 10. O-O-O {[%clk 0:02:44]} 10... Bb4 {[%clk 0:03:00.6]} 11.
a3 {[%clk 0:02:43.4]} 11... Bxc3 {[%clk 0:03:01.5]} 12. Bxc3 {[%clk 0:02:44]}
12... Qc7 {[%clk 0:03:02.8]} 13. Rhe1 {[%clk 0:02:35.9]} 13... O-O {[%clk
0:03:03]} 14. g4 {[%clk 0:02:34.1]} 14... b5 {[%clk 0:02:49.9]} 15. Bd3 {[%clk
0:02:31.7]} 15... a5 {[%clk 0:02:43.5]} 16. g5 {[%clk 0:02:28.7]} 16... Nd5
{[%clk 0:02:44.2]} 17. Bd2 {[%clk 0:02:27.3]} 17... b4 {[%clk 0:02:42.8]} 18. a4
{[%clk 0:02:27.2]} 18... c5 {[%clk 0:02:42.1]} 19. Qe4 {[%clk 0:02:06.6]} 19...
g6 {[%clk 0:02:40.9]} 20. h4 {[%clk 0:02:07.6]} 20... c4 {[%clk 0:02:41.6]} 21.
Bf1 {[%clk 0:02:06.6]} 21... c3 {[%clk 0:02:42.8]} 22. Be3 {[%clk 0:02:03.2]}
22... cxb2+ {[%clk 0:02:43]} 23. Kxb2 {[%clk 0:01:57.8]} 23... Qc3+ {[%clk
0:02:43.7]} 24. Kb1 {[%clk 0:01:57]} 24... Qa3 {[%clk 0:02:44.1]} 25. Bd2 {[%clk
0:01:53.9]} 25... Nc3+ {[%clk 0:02:45.1]} 26. Bxc3 {[%clk 0:01:53.4]} 26... bxc3
{[%clk 0:02:46.6]} 27. Bb5 {[%clk 0:01:46]} 27... Qb2# {[%clk 0:02:47.1]} 0

[Event "Torneo Nuevo Centro. Jornada 11"]
[Site "Chess.com"]
[Date "2020.08.28"]
[Round "3"]
[White "Bosch Jordà, Ricard"]
[Black "Beneyto de Ramon, Guillermo"]
[Result "0-1"]
[WhiteElo "1914"]
[BlackElo "1652"]
[TimeControl "180+2"]
[EndTime "10:54:04 PDT"]
[Termination "Victoria de GUILLETE por abandono"]

1. e4 {[%clk 0:03:01.9]} 1... Nf6 {[%clk 0:02:59.3]} 2. Nc3 {[%clk 0:03:01.7]}
2... e5 {[%clk 0:03:00.1]} 3. Nf3 {[%clk 0:03:00.4]} 3... Nc6 {[%clk 0:02:59]}
4. Bb5 {[%clk 0:03:01.5]} 4... Nd4 {[%clk 0:02:59.4]} 5. Nxd4 {[%clk 0:02:55.4]}
5... exd4 {[%clk 0:02:58.8]} 6. e5 {[%clk 0:02:56.5]} 6... dxc3 {[%clk
0:02:53.2]} 7. exf6 {[%clk 0:02:57.1]} 7... cxd2+ {[%clk 0:02:53.7]} 8. Bxd2
{[%clk 0:02:55.5]} 8... Qxf6 {[%clk 0:02:53.7]} 9. O-O {[%clk 0:02:56.1]} 9...
Be7 {[%clk 0:02:53.1]} 10. Bc3 {[%clk 0:02:55.8]} 10... Qg5 {[%clk 0:02:48.8]}
11. f4 {[%clk 0:02:54.4]} 11... Qxb5 {[%clk 0:02:44.5]} 12. Bxg7 {[%clk
0:02:52.3]} 12... Rg8 {[%clk 0:02:43.4]} 13. Bc3 {[%clk 0:02:52.9]} 13... Qc6
{[%clk 0:02:38]} 14. Qe2 {[%clk 0:02:49.6]} 14... d6 {[%clk 0:02:26.1]} 15. f5
{[%clk 0:02:48.7]} 15... Qc5+ {[%clk 0:02:11.3]} 16. Kh1 {[%clk 0:02:39]} 16...
Bxf5 {[%clk 0:02:00.3]} 17. Bf6 {[%clk 0:02:20.3]} 17... Be6 {[%clk 0:02:00.2]}
18. Bxe7 {[%clk 0:02:17.1]} 18... Kxe7 {[%clk 0:02:01]} 19. Qh5 {[%clk
0:02:14.8]} 19... Qxh5 {[%clk 0:01:58.6]} 0

[Event "Torneo Nuevo Centro. Jornada 11"]
[Site "Chess.com"]
[Date "2020.08.28"]
[Round "3"]
[White "Rabbani Perez, Oumaima "]
[Black "Ortiz Benavent, Alba"]
[Result "1-0"]
[WhiteElo "726"]
[BlackElo "1185"]
[TimeControl "180+2"]
[EndTime "10:54:06 PDT"]
[Termination "Victoria de OumaimaMaria por jaque mate"]

1. e3 {[%clk 0:03:01.9]} 1... e5 {[%clk 0:02:59.7]} 2. d4 {[%clk 0:03:01.1]}
2... f6 {[%clk 0:02:53.6]} 3. dxe5 {[%clk 0:02:59.5]} 3... fxe5 {[%clk
0:02:53.4]} 4. Qh5+ {[%clk 0:02:55.1]} 4... Ke7 {[%clk 0:02:15.1]} 5. Qh4+
{[%clk 0:02:49.6]} 5... Ke8 {[%clk 0:02:11.3]} 6. Qh5+ {[%clk 0:02:50]} 6... Ke7
{[%clk 0:02:11.1]} 7. Qxe5+ {[%clk 0:02:50.3]} 7... Kf7 {[%clk 0:02:06.1]} 8.
Bc4+ {[%clk 0:02:48.3]} 8... Kg6 {[%clk 0:01:58.2]} 9. Qf4 {[%clk 0:02:44.9]}
9... Qg5 {[%clk 0:01:43.4]} 10. Qxf8 {[%clk 0:02:43]} 10... Qxg2 {[%clk
0:01:35.3]} 11. Bd3+ {[%clk 0:02:38.7]} 11... Kh5 {[%clk 0:01:25]} 12. Qf5+
{[%clk 0:02:34.9]} 12... Qg5 {[%clk 0:01:13.9]} 13. Qf3+ {[%clk 0:02:30]} 13...
Kh4 {[%clk 0:00:59.9]} 14. Qh3# {[%clk 0:02:26.1]} 1

[Event "Torneo Nuevo Centro. Jornada 11"]
[Site "Chess.com"]
[Date "2020.08.28"]
[Round "3"]
[White "Martin Ayala, David"]
[Black "Gukasov, Artem"]
[Result "1-0"]
[WhiteElo "1823"]
[BlackElo "1460"]
[TimeControl "180+2"]
[EndTime "10:54:16 PDT"]
[Termination "Victoria de martinayala por abandono"]

1. e4 {[%clk 0:03:01.9]} 1... e6 {[%clk 0:02:58.3]} 2. d4 {[%clk 0:03:02.1]}
2... d5 {[%clk 0:02:59.7]} 3. Nd2 {[%clk 0:03:03.8]} 3... c5 {[%clk 0:02:56.9]}
4. c3 {[%clk 0:03:03.4]} 4... Nc6 {[%clk 0:02:56.7]} 5. exd5 {[%clk 0:02:54.7]}
5... exd5 {[%clk 0:02:57.6]} 6. Ne2 {[%clk 0:02:45.3]} 6... Nf6 {[%clk
0:02:57.8]} 7. g3 {[%clk 0:02:44.8]} 7... Be7 {[%clk 0:02:53.3]} 8. Bg2 {[%clk
0:02:44.1]} 8... O-O {[%clk 0:02:52.3]} 9. O-O {[%clk 0:02:44.8]} 9... b6 {[%clk
0:02:49.2]} 10. dxc5 {[%clk 0:02:41.8]} 10... bxc5 {[%clk 0:02:49.3]} 11. c4
{[%clk 0:02:40.8]} 11... Bb7 {[%clk 0:02:36]} 12. Nc3 {[%clk 0:02:38.2]} 12...
d4 {[%clk 0:02:19.7]} 13. Nd5 {[%clk 0:02:38]} 13... Nxd5 {[%clk 0:02:20.1]} 14.
Bxd5 {[%clk 0:02:38.5]} 14... Qc7 {[%clk 0:02:11.4]} 15. Qf3 {[%clk 0:02:35.1]}
15... Bf6 {[%clk 0:02:06.4]} 16. Ne4 {[%clk 0:02:34.7]} 16... Be5 {[%clk
0:01:55.9]} 17. Ng5 {[%clk 0:02:29.9]} 17... Nb4 {[%clk 0:01:52.3]} 18. Bxb7
{[%clk 0:02:28.2]} 18... Rab8 {[%clk 0:01:51.6]} 19. Be4 {[%clk 0:02:26.9]}
19... f6 {[%clk 0:01:49.3]} 20. Ne6 {[%clk 0:02:25.2]} 20... Qd6 {[%clk
0:01:46.2]} 21. Nxf8 {[%clk 0:02:24.5]} 21... Kxf8 {[%clk 0:01:47]} 22. a3
{[%clk 0:02:23]} 22... Na6 {[%clk 0:01:41.6]} 23. Qh5 {[%clk 0:02:20.2]} 1

[Event "Torneo Nuevo Centro. Jornada 11"]
[Site "Chess.com"]
[Date "2020.08.28"]
[Round "3"]
[White "Castellano López, Javier"]
[Black "Sos Andreu, Eric"]
[Result "0-1"]
[WhiteElo "1952"]
[BlackElo "2521"]
[TimeControl "180+2"]
[EndTime "10:54:44 PDT"]
[Termination "Victoria de ericovski por abandono"]

1. d4 {[%clk 0:03:01.9]} 1... Nf6 {[%clk 0:03:00.5]} 2. c4 {[%clk 0:03:01.7]}
2... e6 {[%clk 0:03:01.8]} 3. Nf3 {[%clk 0:03:02.1]} 3... c5 {[%clk 0:03:01.8]}
4. d5 {[%clk 0:03:01.4]} 4... exd5 {[%clk 0:03:03.7]} 5. cxd5 {[%clk 0:03:03.3]}
5... d6 {[%clk 0:03:05.2]} 6. Nc3 {[%clk 0:03:03.8]} 6... g6 {[%clk 0:03:06.3]}
7. h3 {[%clk 0:03:04.5]} 7... Bg7 {[%clk 0:03:06.2]} 8. e4 {[%clk 0:03:05.4]}
8... Nbd7 {[%clk 0:02:57.1]} 9. Bf4 {[%clk 0:03:03.2]} 9... O-O {[%clk
0:02:50.6]} 10. Bxd6 {[%clk 0:02:59.1]} 10... Re8 {[%clk 0:02:51.9]} 11. Bd3
{[%clk 0:02:55.7]} 11... Qb6 {[%clk 0:02:51.6]} 12. e5 {[%clk 0:02:21.8]} 12...
Qxd6 {[%clk 0:02:50.3]} 13. O-O {[%clk 0:02:05]} 13... Nxe5 {[%clk 0:02:50.6]}
14. Nxe5 {[%clk 0:02:04.1]} 14... Rxe5 {[%clk 0:02:48.6]} 15. Bc4 {[%clk
0:02:01.6]} 15... Bf5 {[%clk 0:02:47.7]} 16. Nb5 {[%clk 0:02:02.1]} 16... Qb6
{[%clk 0:02:48]} 17. Qd2 {[%clk 0:01:34]} 17... Rd8 {[%clk 0:02:44]} 18. Nc3
{[%clk 0:01:29.7]} 18... Ne4 {[%clk 0:02:44]} 19. Nxe4 {[%clk 0:01:29.1]} 19...
Rxe4 {[%clk 0:02:45.9]} 20. Bb3 {[%clk 0:01:20]} 20... Rd4 {[%clk 0:02:44.6]}
21. Qe3 {[%clk 0:01:14.8]} 21... c4 {[%clk 0:02:44.7]} 22. Bd1 {[%clk
0:01:10.4]} 22... R4xd5 {[%clk 0:02:45.4]} 23. Bf3 {[%clk 0:01:11.1]} 23... Qxe3
{[%clk 0:02:45.4]} 24. fxe3 {[%clk 0:01:12.2]} 24... R5d7 {[%clk 0:02:42]} 25.
e4 {[%clk 0:01:11.1]} 25... Be6 {[%clk 0:02:43]} 26. Rab1 {[%clk 0:01:11.2]}
26... Rd2 {[%clk 0:02:43]} 27. b3 {[%clk 0:01:10.1]} 27... c3 {[%clk 0:02:43.8]}
28. Rfc1 {[%clk 0:01:09.8]} 28... c2 {[%clk 0:02:43.8]} 29. Rb2 {[%clk 0:01:08]}
29... Bxb2 {[%clk 0:02:44.1]} 0

[Event "Torneo Nuevo Centro. Jornada 11"]
[Site "Chess.com"]
[Date "2020.08.28"]
[Round "3"]
[White "del Campo Hernández, Ángel "]
[Black "Serrano Requena, Guillem"]
[Result "0-1"]
[WhiteElo "1127"]
[BlackElo "1322"]
[TimeControl "180+2"]
[EndTime "10:54:45 PDT"]
[Termination "Victoria de Guily351 por abandono"]

1. e4 {[%clk 0:03:01.9]} 1... c5 {[%clk 0:02:58.9]} 2. Nf3 {[%clk 0:03:02.1]}
2... g6 {[%clk 0:02:59.2]} 3. d4 {[%clk 0:03:00.7]} 3... cxd4 {[%clk 0:02:59.9]}
4. Qxd4 {[%clk 0:03:01.5]} 4... Nf6 {[%clk 0:02:59.2]} 5. e5 {[%clk 0:03:01.5]}
5... Nc6 {[%clk 0:02:59.9]} 6. Qc3 {[%clk 0:02:58.9]} 6... Nd5 {[%clk 0:03:00]}
7. Qc4 {[%clk 0:02:40.7]} 7... Nb6 {[%clk 0:02:56.5]} 8. Qd3 {[%clk 0:02:30.4]}
8... Bg7 {[%clk 0:02:49.8]} 9. Bf4 {[%clk 0:02:29.7]} 9... Qc7 {[%clk
0:02:43.7]} 10. Qe3 {[%clk 0:02:17.4]} 10... Nc4 {[%clk 0:02:31]} 11. e6 {[%clk
0:02:08.8]} 11... Nxe3 {[%clk 0:02:24.3]} 12. exf7+ {[%clk 0:02:08.5]} 12...
Kxf7 {[%clk 0:02:21.5]} 13. Bxc7 {[%clk 0:02:09.5]} 13... Nxc2+ {[%clk
0:02:19.8]} 14. Kd1 {[%clk 0:02:08.5]} 14... Nxa1 {[%clk 0:02:18.6]} 15. Bc4+
{[%clk 0:02:07]} 15... e6 {[%clk 0:02:09.4]} 16. Ng5+ {[%clk 0:02:05.8]} 16...
Ke7 {[%clk 0:02:03.4]} 17. Re1 {[%clk 0:01:44.6]} 17... Bxb2 {[%clk 0:01:47.9]}
18. Nxe6 {[%clk 0:01:28.1]} 18... dxe6 {[%clk 0:01:47.1]} 19. Rxe6+ {[%clk
0:01:27.9]} 19... Bxe6 {[%clk 0:01:47.2]} 0

[Event "Torneo Nuevo Centro. Jornada 11"]
[Site "Chess.com"]
[Date "2020.08.28"]
[Round "3"]
[White "Macias Pino, Diego"]
[Black "Birnoveanu, Petru"]
[Result "1-0"]
[WhiteElo "2251"]
[BlackElo "1703"]
[TimeControl "180+2"]
[EndTime "10:55:00 PDT"]
[Termination "Victoria de adivinaquiensoy por abandono"]

1. d4 {[%clk 0:03:01.9]} 1... g6 {[%clk 0:02:58.5]} 2. Nf3 {[%clk 0:03:01.7]}
2... Bg7 {[%clk 0:02:59.9]} 3. Bf4 {[%clk 0:03:03.2]} 3... d6 {[%clk 0:03:00]}
4. c3 {[%clk 0:03:03]} 4... Nd7 {[%clk 0:02:57.7]} 5. Nbd2 {[%clk 0:03:02.3]}
5... e5 {[%clk 0:02:56.2]} 6. Bg3 {[%clk 0:03:01.5]} 6... f5 {[%clk 0:02:51]} 7.
e4 {[%clk 0:02:53.7]} 7... f4 {[%clk 0:02:39.4]} 8. Bh4 {[%clk 0:02:53.1]} 8...
Bf6 {[%clk 0:02:39.6]} 9. Bxf6 {[%clk 0:02:53.5]} 9... Qxf6 {[%clk 0:02:29.9]}
10. Nc4 {[%clk 0:02:47.5]} 10... b5 {[%clk 0:02:18.5]} 11. dxe5 {[%clk
0:02:20.2]} 11... dxe5 {[%clk 0:02:14.6]} 12. Qd5 {[%clk 0:02:13.8]} 12... c6
{[%clk 0:01:59.3]} 13. Nd6+ {[%clk 0:02:13.2]} 13... Kf8 {[%clk 0:01:40.8]} 14.
Qxc6 {[%clk 0:01:58]} 14... Ke7 {[%clk 0:00:41.4]} 15. Nxc8+ {[%clk 0:01:55.3]}
1

[Event "Torneo Nuevo Centro. Jornada 11"]
[Site "Chess.com"]
[Date "2020.08.28"]
[Round "3"]
[White "Blanco Solaz, Ramón"]
[Black "Ursariu, Nikolas Victor"]
[Result "1-0"]
[WhiteElo "1969"]
[BlackElo "1179"]
[TimeControl "180+2"]
[EndTime "10:55:05 PDT"]
[Termination "Victoria de Rbs77 por jaque mate"]

1. e4 {[%clk 0:03:01.9]} 1... e5 {[%clk 0:03:00.2]} 2. f4 {[%clk 0:03:03]} 2...
Nc6 {[%clk 0:02:58.8]} 3. Nf3 {[%clk 0:03:03.8]} 3... d6 {[%clk 0:02:54.4]} 4.
Bc4 {[%clk 0:03:03.6]} 4... Be6 {[%clk 0:02:52.2]} 5. d3 {[%clk 0:03:02.4]} 5...
Nf6 {[%clk 0:02:48.8]} 6. Nc3 {[%clk 0:03:01.3]} 6... Be7 {[%clk 0:02:48.4]} 7.
O-O {[%clk 0:03:00.2]} 7... Qd7 {[%clk 0:02:43.4]} 8. Bb5 {[%clk 0:02:51.8]}
8... a6 {[%clk 0:02:42.6]} 9. Ba4 {[%clk 0:02:52.5]} 9... O-O {[%clk 0:02:39.9]}
10. fxe5 {[%clk 0:02:51.4]} 10... dxe5 {[%clk 0:02:38.2]} 11. Nxe5 {[%clk
0:02:52.6]} 11... Qd6 {[%clk 0:02:36.9]} 12. Nxc6 {[%clk 0:02:47.9]} 12... bxc6
{[%clk 0:02:33.9]} 13. Bf4 {[%clk 0:02:46.1]} 13... Qc5+ {[%clk 0:02:28.4]} 14.
Kh1 {[%clk 0:02:46.5]} 14... Bd6 {[%clk 0:02:25.6]} 15. d4 {[%clk 0:02:45]}
15... Qb6 {[%clk 0:02:20.7]} 16. e5 {[%clk 0:02:45.6]} 16... Nh5 {[%clk
0:02:05.9]} 17. exd6 {[%clk 0:02:44.9]} 17... Nxf4 {[%clk 0:02:07.8]} 18. Rxf4
{[%clk 0:02:45.5]} 18... cxd6 {[%clk 0:02:06.9]} 19. d5 {[%clk 0:02:44]} 19...
cxd5 {[%clk 0:02:05]} 20. Nxd5 {[%clk 0:02:45.2]} 20... Bxd5 {[%clk 0:02:04.7]}
21. Qxd5 {[%clk 0:02:45.5]} 21... Rac8 {[%clk 0:01:51.4]} 22. Bb3 {[%clk
0:02:44.6]} 22... Rfe8 {[%clk 0:01:35.9]} 23. Qxf7+ {[%clk 0:02:34.5]} 23... Kh8
{[%clk 0:01:35]} 24. Rg4 {[%clk 0:02:34.1]} 24... Rg8 {[%clk 0:01:28.6]} 25. Rf1
{[%clk 0:02:29.1]} 25... Qe3 {[%clk 0:01:21.7]} 26. Qf5 {[%clk 0:02:24.1]} 26...
Rce8 {[%clk 0:01:17.2]} 27. Rh4 {[%clk 0:02:21.6]} 27... h6 {[%clk 0:01:11.8]}
28. Bxg8 {[%clk 0:02:21.6]} 28... Qe1 {[%clk 0:01:09.6]} 29. Qh7# {[%clk
0:02:19.5]} 1

[Event "Torneo Nuevo Centro. Jornada 11"]
[Site "Chess.com"]
[Date "2020.08.28"]
[Round "3"]
[White "Gómez Alonso, Óscar"]
[Black "Conejero Martínez, Víctor"]
[Result "1-0"]
[WhiteElo "1792"]
[BlackElo "1370"]
[TimeControl "180+2"]
[EndTime "10:55:06 PDT"]
[Termination "Victoria de osgo78 por jaque mate"]

1. d4 {[%clk 0:03:00]} 1... Nf6 {[%clk 0:02:59.4]} 2. c4 {[%clk 0:02:59.4]} 2...
e5 {[%clk 0:02:59.3]} 3. dxe5 {[%clk 0:02:58.7]} 3... Ng4 {[%clk 0:02:59.9]} 4.
a3 {[%clk 0:02:53.8]} 4... Nxe5 {[%clk 0:02:58.7]} 5. e3 {[%clk 0:02:50.5]} 5...
d6 {[%clk 0:02:45.3]} 6. Nd2 {[%clk 0:02:50.4]} 6... Be6 {[%clk 0:02:42.8]} 7.
Ngf3 {[%clk 0:02:50.7]} 7... Nbc6 {[%clk 0:02:37.3]} 8. b4 {[%clk 0:02:46.6]}
8... a6 {[%clk 0:02:19.6]} 9. Bb2 {[%clk 0:02:46.3]} 9... Nd7 {[%clk 0:01:55.7]}
10. Nd4 {[%clk 0:02:46.2]} 10... Nxd4 {[%clk 0:01:55]} 11. exd4 {[%clk
0:02:45.8]} 11... Qe7 {[%clk 0:01:43.2]} 12. Qe2 {[%clk 0:02:46.3]} 12... Bxc4
{[%clk 0:01:39.7]} 13. Qxe7+ {[%clk 0:02:43.1]} 13... Bxe7 {[%clk 0:01:40]} 14.
Bxc4 {[%clk 0:02:42.2]} 14... b5 {[%clk 0:01:36.4]} 15. Bd5 {[%clk 0:02:35.7]}
15... Rc8 {[%clk 0:01:33.5]} 16. Bc6 {[%clk 0:02:35.9]} 16... Rb8 {[%clk
0:01:29.4]} 17. O-O {[%clk 0:02:33.3]} 17... Rb6 {[%clk 0:01:23.5]} 18. d5
{[%clk 0:02:33.7]} 18... Rg8 {[%clk 0:01:20.7]} 19. Rfe1 {[%clk 0:02:34]} 19...
Kd8 {[%clk 0:01:19.5]} 20. Nf3 {[%clk 0:02:23.3]} 20... Nb8 {[%clk 0:01:19.5]}
21. Rac1 {[%clk 0:02:20.7]} 21... g5 {[%clk 0:01:10.5]} 22. h3 {[%clk
0:02:20.3]} 22... h5 {[%clk 0:01:10]} 23. Nd4 {[%clk 0:02:17.6]} 23... g4 {[%clk
0:01:08.6]} 24. hxg4 {[%clk 0:02:17.5]} 24... Rxg4 {[%clk 0:01:06]} 25. Nf5
{[%clk 0:02:18.2]} 25... Bg5 {[%clk 0:00:58.3]} 26. Re8# {[%clk 0:02:18.2]} 1

[Event "Torneo Nuevo Centro. Jornada 11"]
[Site "Chess.com"]
[Date "2020.08.28"]
[Round "3"]
[White "Montesinos Diaz, Luis"]
[Black "Casado Andreu, David"]
[Result "1-0"]
[WhiteElo "1891"]
[BlackElo "1567"]
[TimeControl "180+2"]
[EndTime "10:55:22 PDT"]
[Termination "Victoria de Gwiso_06 por abandono"]

1. e4 {[%clk 0:02:07.7]} 1... e5 {[%clk 0:03:00.1]} 2. Nf3 {[%clk 0:02:07.1]}
2... Nc6 {[%clk 0:03:00.8]} 3. d4 {[%clk 0:02:05.9]} 3... exd4 {[%clk
0:03:01.3]} 4. Bc4 {[%clk 0:02:02.7]} 4... Bb4+ {[%clk 0:02:57.5]} 5. c3 {[%clk
0:01:57.8]} 5... dxc3 {[%clk 0:02:59.4]} 6. bxc3 {[%clk 0:01:58.6]} 6... Ba5
{[%clk 0:03:00.8]} 7. Ng5 {[%clk 0:01:56.9]} 7... Nh6 {[%clk 0:02:35.7]} 8. Ba3
{[%clk 0:01:53.7]} 8... d6 {[%clk 0:02:31.8]} 9. O-O {[%clk 0:01:33]} 9... Qxg5
{[%clk 0:02:27.9]} 10. f4 {[%clk 0:01:29.3]} 10... Qe7 {[%clk 0:02:05.9]} 11. e5
{[%clk 0:01:25.6]} 11... O-O {[%clk 0:02:03.7]} 12. exd6 {[%clk 0:01:26.2]}
12... cxd6 {[%clk 0:01:58]} 13. Bxd6 {[%clk 0:01:26.5]} 13... Qe3+ {[%clk
0:01:58.2]} 14. Kh1 {[%clk 0:01:26]} 14... Rd8 {[%clk 0:01:40.6]} 15. Re1 {[%clk
0:01:25.6]} 15... Rxd6 {[%clk 0:01:32.6]} 16. Nd2 {[%clk 0:01:14.2]} 16... Qxd2
{[%clk 0:01:30.8]} 17. Qxd2 {[%clk 0:01:13.4]} 1

[Event "Torneo Nuevo Centro. Jornada 11"]
[Site "Chess.com"]
[Date "2020.08.28"]
[Round "3"]
[White "Gimenez Sanchis, Jose Antonio"]
[Black "Gimenez Saiz, Jose Raul"]
[Result "0-1"]
[WhiteElo "1402"]
[BlackElo "1816"]
[TimeControl "180+2"]
[EndTime "10:55:37 PDT"]
[Termination "Victoria de rango013 por abandono"]

1. d4 {[%clk 0:03:01.9]} 1... d6 {[%clk 0:02:56.9]} 2. Nf3 {[%clk 0:03:02.9]}
2... g6 {[%clk 0:02:44.6]} 3. Bf4 {[%clk 0:03:03.1]} 3... Nd7 {[%clk 0:02:44.1]}
4. e3 {[%clk 0:03:04.1]} 4... Bg7 {[%clk 0:02:45]} 5. Be2 {[%clk 0:03:02.7]}
5... e5 {[%clk 0:02:45.7]} 6. dxe5 {[%clk 0:03:03.2]} 6... dxe5 {[%clk
0:02:45.6]} 7. Bg3 {[%clk 0:03:04.4]} 7... Ne7 {[%clk 0:02:46.4]} 8. h3 {[%clk
0:03:03.1]} 8... O-O {[%clk 0:02:43.1]} 9. O-O {[%clk 0:03:03.4]} 9... e4 {[%clk
0:02:37.2]} 10. Nd4 {[%clk 0:03:03.8]} 10... a6 {[%clk 0:02:36.9]} 11. c3 {[%clk
0:03:04.8]} 11... b5 {[%clk 0:02:36.7]} 12. Nd2 {[%clk 0:03:05]} 12... c5 {[%clk
0:02:36.5]} 13. Nc2 {[%clk 0:02:58.2]} 13... Bb7 {[%clk 0:02:36.4]} 14. Ne1
{[%clk 0:02:47.3]} 14... Nf5 {[%clk 0:02:29.3]} 15. Bh2 {[%clk 0:02:45.6]} 15...
Ne5 {[%clk 0:02:28.5]} 16. Qc2 {[%clk 0:02:44.2]} 16... Qd5 {[%clk 0:02:18.7]}
17. Rd1 {[%clk 0:02:42.7]} 17... Qxa2 {[%clk 0:02:16.5]} 18. Nxe4 {[%clk
0:02:38.6]} 18... Bxe4 {[%clk 0:02:06.1]} 19. Qxe4 {[%clk 0:02:37.8]} 19... Qxb2
{[%clk 0:02:06.4]} 20. Bf3 {[%clk 0:02:21.3]} 20... Nxf3+ {[%clk 0:02:04.8]} 21.
Nxf3 {[%clk 0:02:19.8]} 21... Qxc3 {[%clk 0:01:55.1]} 22. Be5 {[%clk 0:02:16.9]}
22... Bxe5 {[%clk 0:01:54.3]} 23. Nxe5 {[%clk 0:02:17.6]} 23... Rfe8 {[%clk
0:01:49.1]} 24. Rd5 {[%clk 0:02:06.7]} 24... Rad8 {[%clk 0:01:25.7]} 25. Rfd1
{[%clk 0:02:04.9]} 25... Rxd5 {[%clk 0:01:25.7]} 26. Rxd5 {[%clk 0:02:05.6]}
26... f6 {[%clk 0:01:14.6]} 0